fUSD/lending_fUSD_20241111
["ID","MTS","AMOUNT","RATE_DAILY","PERIOD"]
[342026162,1731369035330,-987.51802568,0.00013866,2]
[342026163,1731369035339,-200.0,0.0001387,2]
[342026164,1731369035348,-987.51802568,0.00013875,2]
[342026165,1731369035357,-1158.96585775,0.00013875,2]
[342026166,1731369035367,-200.0,0.00013879,2]
[342026167,1731369035376,-987.51802568,0.00013879,2]
[342026168,1731369035385,-1321.38391655,0.0001388,2]
[342026169,1731369035395,-1321.38391655,0.00013881,2]
[342026170,1731369035404,-1158.96585775,0.00013881,2]
[342026171,1731369035414,-1321.38391655,0.00013882,2]
[342026172,1731369035423,-200.0,0.00013885,2]
[342026173,1731369035433,-1321.38391655,0.00013886,2]
[342026174,1731369035445,-1198.611,0.0001389,2]
[342026175,1731369035454,-987.51802568,0.00013892,2]
[342026176,1731369035468,-1158.96585775,0.000139,2]
[342026177,1731369035477,-2201.99303939,0.00013967,2]
[342026178,1731369035487,-1125.0,0.00013999,2]
[342026179,1731369035496,-500.0,0.00013999,2]
[342026180,1731369035505,-500.0,0.00013999,2]
[342026181,1731369035515,-500.0,0.00013999,2]
[342026182,1731369035524,-519.2,0.00013999,2]
[342026183,1731369035535,-500.0,0.00013999,2]
[342026184,1731369035544,-500.0,0.00013999,2]
[342026185,1731369035554,-500.0,0.00013999,2]
[342026186,1731369035563,-500.0,0.00013999,2]
[342026187,1731369035572,-500.0,0.00013999,2]
[342026188,1731369035581,-500.0,0.00013999,2]
[342026189,1731369035591,-524.03875116,0.00013999,2]
[342026190,1731369035600,-500.0,0.00013999,2]
[342026191,1731369035609,-500.0,0.00013999,2]
[342026192,1731369035618,-385.3024833,0.00013999,2]
[342026193,1731369035632,-114.6975167,0.00013999,2]
[342026194,1731369035641,-500.0,0.00013999,2]
[342026195,1731369035651,-500.0,0.00013999,2]
[342026196,1731369035660,-500.0,0.00013999,2]
[342026197,1731369035669,-500.0,0.00013999,2]
[342026198,1731369035679,-500.0,0.00013999,2]
[342026199,1731369035689,-500.0,0.00013999,2]
[342026200,1731369035698,-812.65,0.00013999,2]
[342026201,1731369035708,-500.0,0.00013999,2]
[342026202,1731369035719,-812.65,0.00013999,2]
[342026203,1731369035728,-500.0,0.00013999,2]
[342026204,1731369035736,-500.0,0.00013999,2]
[342026205,1731369035745,-812.65,0.00013999,2]
[342026206,1731369035755,-500.0,0.00013999,2]
[342026207,1731369035764,-812.65,0.00013999,2]
[342026208,1731369035773,-812.65,0.00013999,2]
[342026209,1731369035783,-812.65,0.00013999,2]
[342026210,1731369035792,-69.68436806,0.00013999,2]
[342026211,1731369035803,-742.96563194,0.00013999,2]
[342026212,1731369035813,-812.65,0.00013999,2]
[342026213,1731369035822,-500.0,0.00013999,2]
[342026214,1731369035831,-79.01549122,0.00013999,2]
[342026215,1731369035842,-420.98450878,0.00013999,2]
[342026216,1731369035851,-500.0,0.00013999,2]
[342026217,1731369035860,-500.0,0.00013999,2]
[342026218,1731369035869,-183.45163222,0.00013999,2]
[342026219,1731369035881,-316.54836778,0.00013999,2]
[342026220,1731369035890,-500.0,0.00013999,2]
[342026221,1731369035899,-357.33471217,0.00013999,2]
[342026226,1731369038154,-500.0,0.00013698,2]
[342026227,1731369038164,-609.93,0.00013698,2]
[342026228,1731369038177,-142.66528783,0.00013999,2]
[342026229,1731369038186,-500.0,0.00013999,2]
[342026230,1731369038197,-500.0,0.00013999,2]
[342026231,1731369038207,-217.26749523,0.00013999,2]
[342026232,1731369038218,-303.00224134,0.00013999,2]
[342026233,1731369038227,-255.0,0.00014008,2]
[342026234,1731369038236,-1600.0,0.00014076,2]
[342026235,1731369038245,-907.34589908,0.00014147,2]
[342026236,1731369038258,-92.65410092,0.00014147,2]
[342026237,1731369038267,-150.0,0.00014177,2]
[342026238,1731369038276,-2201.99303939,0.000142,2]
[342026239,1731369038286,-1476.0,0.00014313,2]
[342026240,1731369038295,-563.0,0.00014395,2]
[342026241,1731369038304,-628.0,0.00014395,2]
[342026242,1731369038313,-1986.19351969,0.00014395,2]
[342026243,1731369038335,-922.80648031,0.00014395,2]
[342026244,1731369038344,-3465.0,0.00014395,2]
[342026245,1731369038353,-921.0,0.00014395,2]
[342026246,1731369038362,-150.0,0.00014395,2]
[342026247,1731369038371,-968.0105052,0.00014395,2]
[342026248,1731369038382,-190.9894948,0.00014395,2]
[342026249,1731369038391,-114.4455052,0.00014395,2]
[342026250,1731369038401,-390.40607427,0.00014395,2]
[342026251,1731369038412,-1825.14200246,0.00014395,2]
[342026252,1731369038431,-3597.00641807,0.00014395,2]
[342026253,1731369038441,-7281.709,0.00014395,2]
[342026254,1731369038454,-150.046,0.00014395,2]
[342026255,1731369038463,-150.0,0.00014395,2]
[342026256,1731369038472,-2201.99303939,0.00014433,2]
[342026257,1731369038482,-429.0,0.00014477,2]
[342026258,1731369038491,-500.0,0.00014499,2]
[342026259,1731369038499,-812.65,0.00014499,2]
[342026260,1731369038509,-2201.99303939,0.00014667,2]
[342026261,1731369038518,-1680.0,0.000147,2]
[342026262,1731369038529,-426.2683932,0.00014711,2]
[342026263,1731369038539,-281.04,0.00014751,2]
[342026264,1731369038548,-1000.0,0.000148,2]
[342026265,1731369038557,-5000.0,0.000148,2]
[342026266,1731369038567,-499.999999,0.00014823,2]
[342026267,1731369038576,-500.0,0.00014849,2]
[342026268,1731369038586,-500.0,0.00014849,2]
[342026269,1731369038595,-500.0,0.00014849,2]
[342026270,1731369038604,-500.0,0.00014849,2]
[342026271,1731369038613,-500.0,0.00014849,2]
[342026272,1731369038622,-585.47737713,0.00014849,2]
[342026273,1731369038631,-500.0,0.00014849,2]
[342026274,1731369038641,-500.0,0.00014849,2]
[342026275,1731369038650,-500.0,0.00014849,2]
[342026276,1731369038659,-565.69716335,0.00014849,2]
[342026277,1731369038668,-500.0,0.00014849,2]
[342026278,1731369038677,-500.0,0.00014849,2]
[342026279,1731369038686,-500.0,0.00014849,2]
[342026280,1731369038697,-500.0,0.00014849,2]
[342026281,1731369038706,-12026.30245795,0.0001485,2]
[342026282,1731369038716,-200.0,0.0001489,2]
[342026283,1731369038726,-982.43,0.00014899,2]
[342026284,1731369038735,-500.0,0.00014899,2]
[342026285,1731369038744,-500.0,0.00014899,2]
[342026286,1731369038753,-500.0,0.00014899,2]
[342026287,1731369038762,-500.0,0.00014899,2]
[342026288,1731369038771,-500.0,0.00014899,2]
[342026289,1731369038780,-685.83,0.00014899,2]
[342026290,1731369038789,-637.43,0.00014899,2]
[342026291,1731369038798,-500.0,0.00014899,2]
[342026292,1731369038808,-500.0,0.00014899,2]
[342026293,1731369038817,-500.0,0.00014899,2]
[342026294,1731369038827,-572.97,0.00014899,2]
[342026295,1731369038836,-500.0,0.00014899,2]
[342026296,1731369038845,-571.46,0.00014899,2]
[342026297,1731369038854,-500.0,0.00014899,2]
[342026298,1731369038864,-1060.43,0.00014899,2]
[342026299,1731369038873,-500.0,0.00014899,2]
[342026300,1731369038882,-600.23,0.00014899,2]
[342026301,1731369038891,-959.73,0.00014899,2]
[342026302,1731369038900,-150.33103448,0.00014899,2]
[342026303,1731369038909,-474.76325133,0.00014899,2]
[342026304,1731369038919,-500.0,0.00014899,2]
[342026305,1731369038928,-500.0,0.00014899,2]
[342026306,1731369038937,-500.0,0.00014899,2]
[342026307,1731369038948,-500.0,0.00014899,2]
[342026308,1731369038957,-500.0,0.00014899,2]
[342026309,1731369038966,-500.0,0.00014899,2]
[342026310,1731369038975,-500.0,0.00014899,2]
[342026311,1731369038984,-500.0,0.00014899,2]
[342026312,1731369038993,-314.29523843,0.00014899,2]
[342026313,1731369039003,-502.15544814,0.00014899,2]
[342026314,1731369039012,-419.27462538,0.00014899,2]
[342026315,1731369039021,-500.0,0.00014899,2]
[342026316,1731369039030,-500.0,0.00014899,2]
[342026317,1731369039040,-503.71026077,0.00014899,2]
[342026318,1731369039049,-500.0,0.00014899,2]
[342026319,1731369039058,-500.0,0.00014899,2]
[342026320,1731369039068,-500.0,0.00014899,2]
[342026321,1731369039077,-499.9612296,0.00014899,2]
[342026322,1731369039086,-500.0,0.00014899,2]
[342026323,1731369039096,-504.35222884,0.00014899,2]
[342026324,1731369039106,-500.0,0.00014899,2]
[342026325,1731369039115,-500.0,0.00014899,2]
[342026326,1731369039124,-500.0,0.00014899,2]
[342026327,1731369039134,-500.0,0.00014899,2]
[342026328,1731369039143,-500.0,0.00014899,2]
[342026329,1731369039153,-500.0,0.00014899,2]
[342026330,1731369039163,-500.0,0.00014899,2]
[342026331,1731369039174,-526.19,0.00014899,2]
[342026332,1731369039183,-308.05070652,0.00014899,2]
[342026333,1731369039194,-500.0,0.00014899,2]
[342026334,1731369039206,-531.78,0.00014899,2]
[342026335,1731369039215,-500.0,0.00014899,2]
[342026336,1731369039223,-500.0,0.00014899,2]
[342026337,1731369039232,-611.82,0.00014899,2]
[342026338,1731369039241,-541.75272779,0.00014899,2]
[342026339,1731369039250,-500.0,0.00014899,2]
[342026340,1731369039259,-294.38,0.00014899,2]
[342026341,1731369039268,-1061.56,0.00014899,2]
[342026342,1731369039277,-500.0,0.00014899,2]
[342026343,1731369039286,-500.0,0.00014899,2]
[342026344,1731369039295,-500.0,0.00014899,2]
[342026345,1731369039304,-500.0,0.00014899,2]
[342026346,1731369039314,-500.0,0.00014899,2]
[342026347,1731369039323,-500.0,0.00014899,2]
[342026348,1731369039332,-500.0,0.00014899,2]
[342026349,1731369039341,-500.0,0.00014899,2]
[342026350,1731369039350,-500.0,0.00014899,2]
[342026351,1731369039359,-500.0,0.00014899,2]
[342026352,1731369039368,-500.0,0.00014899,2]
[342026353,1731369039377,-230.2515779,0.00014899,2]
[342026354,1731369039386,-338.79910912,0.00014899,2]
[342026355,1731369039395,-500.0,0.00014899,2]
[342026356,1731369039404,-500.0,0.00014899,2]
[342026357,1731369039413,-500.0,0.00014899,2]
[342026358,1731369039423,-500.0,0.00014899,2]
[342026359,1731369039432,-500.0,0.00014899,2]
[342026360,1731369039443,-334.52438624,0.000149,2]
[342026361,1731369039453,-149712.0006,0.000149,2]
[342026362,1731369039464,-31503.18,0.000149,2]
[342026363,1731369039474,-165.60200626,0.000149,2]
[342026364,1731369039484,-2201.99303939,0.000149,2]
[342026365,1731369039493,-1196.45908659,0.000149,2]
[342026366,1731369039504,-1077.22526826,0.000149,2]
[342026367,1731369039515,-1077.22526826,0.000149,2]
[342026368,1731369039524,-1077.22526826,0.000149,2]
[342026369,1731369039535,-1077.22526826,0.000149,2]
[342026370,1731369039545,-1077.22526826,0.000149,2]
[342026371,1731369039554,-1077.22526826,0.000149,2]
[342026372,1731369039564,-1077.22526826,0.000149,2]
[342026373,1731369039573,-1077.22526826,0.000149,2]
[342026374,1731369039582,-1077.22526826,0.000149,2]
[342026375,1731369039591,-1077.22526826,0.000149,2]
[342026376,1731369039600,-1077.22526826,0.000149,2]
[342026377,1731369039609,-1077.22526826,0.000149,2]
[342026378,1731369039618,-1077.22526826,0.000149,2]
[342026379,1731369039627,-1077.22526826,0.000149,2]
[342026380,1731369039636,-1077.22526826,0.000149,2]
[342026381,1731369039645,-1077.22526826,0.000149,2]
[342026382,1731369039655,-1077.22526826,0.000149,2]
[342026383,1731369039664,-1077.22526826,0.000149,2]
[342026384,1731369039673,-1077.22526826,0.000149,2]
[342026385,1731369039682,-1077.22,0.000149,2]
[342026386,1731369039693,-1615.83790239,0.000149,2]
[342026387,1731369039703,-1615.83790239,0.000149,2]
[342026388,1731369039712,-1615.83790239,0.000149,2]
[342026389,1731369039721,-1615.83790239,0.000149,2]
[342026390,1731369039730,-1615.83790239,0.000149,2]
[342026391,1731369039740,-1615.83790239,0.000149,2]
[342026392,1731369039749,-1615.83790239,0.000149,2]
[342026393,1731369039758,-1615.83790239,0.000149,2]
[342026394,1731369039768,-1615.83790239,0.000149,2]
[342026395,1731369039778,-1615.83790239,0.000149,2]
[342026396,1731369039790,-1615.83790239,0.000149,2]
[342026397,1731369039803,-1615.83790239,0.000149,2]
[342026398,1731369039812,-1615.83790239,0.000149,2]
[342026399,1731369039821,-1615.83790239,0.000149,2]
[342026400,1731369039830,-1615.83790239,0.000149,2]
[342026401,1731369039839,-1615.83790239,0.000149,2]
[342026402,1731369039848,-1615.83790239,0.000149,2]
[342026403,1731369039858,-1615.83790239,0.000149,2]
[342026404,1731369039867,-1615.83790239,0.000149,2]
[342026405,1731369039876,-1615.83,0.000149,2]
[342026406,1731369039885,-1000.0,0.000149,2]
[342026407,1731369039894,-479.69647567,0.000149,2]
[342026408,1731369039904,-1156.54085614,0.000149,2]
[342026409,1731369039913,-1942.32204908,0.000149,2]
[342026410,1731369039922,-5222.25188216,0.000149,2]
[342026412,1731369039931,-1000.0,0.0001497,2]
[342026414,1731369039940,-460.30262154,0.00014973,2]
[342026415,1731369039951,-178.99856788,0.00014973,2]
[342026416,1731369039961,-500.0,0.00014973,2]
[342026417,1731369039971,-3175.3520014,0.00014987,2]
[342026418,1731369039980,-3906.0797218,0.00014987,2]
[342026419,1731369039991,-3147.7672569,0.0001499,2]
[342026420,1731369040000,-3120.1825125,0.0001499,2]
[342026421,1731369040010,-3092.5977681,0.0001499,2]
[342026422,1731369040019,-3065.0130236,0.0001499,2]
[342026423,1731369040028,-3037.4282792,0.0001499,2]
[342026424,1731369040039,-3872.1470394,0.0001499,2]
[342026425,1731369040048,-3838.214357,0.0001499,2]
[342026426,1731369040057,-3804.2816747,0.0001499,2]
[342026427,1731369040067,-3770.3489923,0.0001499,2]
[342026428,1731369040076,-3736.4163099,0.0001499,2]
[342026429,1731369040086,-500.0,0.00014997,2]
[342026430,1731369040095,-812.65,0.00014997,2]
[342026431,1731369040104,-2704.90866046,0.00014998,4]
[342026432,1731369040113,-982.43,0.00014998,2]
[342026433,1731369040123,-500.0,0.00014998,2]
[342026434,1731369040131,-500.0,0.00014998,2]
[342026435,1731369040141,-500.0,0.00014998,2]
[342026436,1731369040150,-500.0,0.00014998,2]
[342026437,1731369040159,-500.0,0.00014998,2]
[342026438,1731369040168,-685.83,0.00014998,2]
[342026439,1731369040178,-637.43,0.00014998,2]
[342026440,1731369040187,-500.0,0.00014998,2]
[342026441,1731369040198,-500.0,0.00014998,2]
[342026442,1731369040208,-500.0,0.00014998,2]
[342026443,1731369040218,-572.97,0.00014998,2]
[342026444,1731369040228,-500.0,0.00014998,2]
[342026445,1731369040238,-571.46,0.00014998,2]
[342026446,1731369040247,-500.0,0.00014998,2]
[342026447,1731369040257,-1060.43,0.00014998,2]
[342026448,1731369040266,-500.0,0.00014998,2]
[342026449,1731369040276,-959.73,0.00014998,2]
[342026450,1731369040285,-500.0,0.00014998,2]
[342026451,1731369040294,-500.0,0.00014998,2]
[342026452,1731369040303,-314.39,0.00014998,2]
[342026453,1731369040312,-500.0,0.00014998,2]
[342026454,1731369040322,-503.16665298,0.00014998,2]
[342026455,1731369040331,-500.0,0.00014998,2]
[342026456,1731369040340,-500.0,0.00014998,2]
[342026457,1731369040350,-500.0,0.00014998,2]
[342026458,1731369040359,-500.0,0.00014998,2]
[342026459,1731369040368,-537.13954352,0.00014998,2]
[342026460,1731369040377,-500.0,0.00014998,2]
[342026461,1731369040386,-500.0,0.00014998,2]
[342026462,1731369040395,-500.0,0.00014998,2]
[342026464,1731369040404,-322.93,0.00014998,2]
[342026465,1731369040413,-255.84,0.00014998,2]
[342026466,1731369040422,-500.0,0.00014998,2]
[342026467,1731369040431,-1061.56,0.00014998,2]
[342026468,1731369040440,-500.0,0.00014998,2]
[342026469,1731369040455,-389.92,0.00014998,2]
[342026470,1731369040464,-563.04,0.00014998,2]
[342026471,1731369040473,-456.12009027,0.00014998,2]
[342026472,1731369040482,-604.23,0.00014998,2]
[342026473,1731369040491,-500.0,0.00014998,2]
[342026474,1731369040500,-429.0,0.00014998,2]
[342026475,1731369040509,-293.88,0.00014998,2]
[342026476,1731369040519,-441.14,0.00014998,2]
[342026477,1731369040536,-500.0,0.00014998,2]
[342026478,1731369040545,-291.1755135,0.00014998,2]
[342026480,1731369040555,-239.08,0.00014998,2]
[342026481,1731369040564,-500.0,0.00014998,2]
[342026482,1731369040574,-1000.0,0.00014999,2]
[342026483,1731369040583,-35404.32822119,0.00014999,2]
[342026484,1731369040597,-257.82237684,0.00014999,2]
[342026485,1731369040608,-47366.61449199,0.00014999,2]
[342026486,1731369040618,-55658.07007436,0.00014999,2]
[342026487,1731369040627,-500.0,0.00014999,2]
[342026488,1731369040636,-500.0,0.00014999,2]
[342026489,1731369040646,-500.0,0.00014999,2]
[342026490,1731369040655,-500.0,0.00014999,2]
[342026491,1731369040664,-411.92460483,0.00014999,2]
[342026492,1731369040673,-500.0,0.00014999,2]
[342026493,1731369040682,-1000.0,0.00014999,2]
[342026494,1731369040691,-500.0,0.00014999,2]
[342026495,1731369040700,-500.0,0.00014999,2]
[342026496,1731369040709,-500.0,0.00014999,2]
[342026497,1731369040719,-213.53753233,0.00014999,2]
[342026498,1731369040728,-812.65,0.00014999,2]
[342026499,1731369040737,-812.65,0.00014999,2]
[342026500,1731369040746,-812.65,0.00014999,2]
[342026501,1731369040756,-812.65,0.00014999,2]
[342026502,1731369040764,-812.65,0.00014999,2]
[342026503,1731369040774,-812.65,0.00014999,2]
[342026504,1731369040783,-812.65,0.00014999,2]
[342026505,1731369040791,-812.65,0.00014999,2]
[342026506,1731369040801,-812.65,0.00014999,2]
[342026507,1731369040809,-812.67629503,0.00014999,2]
[342026508,1731369040818,-982.43,0.00014999,2]
[342026509,1731369040827,-982.43,0.00014999,2]
[342026510,1731369040836,-502.60089201,0.00014999,2]
[342026511,1731369040847,-982.43,0.00014999,2]
[342026512,1731369040856,-982.43,0.00014999,2]
[342026513,1731369040865,-982.43,0.00014999,2]
[342026514,1731369040875,-982.43,0.00014999,2]
[342026515,1731369040884,-982.43,0.00014999,2]
[342026516,1731369040893,-982.43,0.00014999,2]
[342026517,1731369040902,-982.43,0.00014999,2]
[342026518,1731369040911,-982.43,0.00014999,2]
[342026519,1731369040920,-982.43,0.00014999,2]
[342026520,1731369040929,-982.43,0.00014999,2]
[342026521,1731369040938,-982.43,0.00014999,2]
[342026522,1731369040949,-982.43,0.00014999,2]
[342026523,1731369040959,-982.43,0.00014999,2]
[342026524,1731369040968,-982.43,0.00014999,2]
[342026525,1731369040978,-982.43,0.00014999,2]
[342026526,1731369040987,-982.43,0.00014999,2]
[342026527,1731369040996,-982.43,0.00014999,2]
[342026529,1731369041005,-982.43,0.00014999,2]
[342026530,1731369041015,-982.49535582,0.00014999,2]
[342026531,1731369041023,-500.0,0.00014999,2]
[342026532,1731369041032,-500.0,0.00014999,2]
[342026533,1731369041042,-500.0,0.00014999,2]
[342026534,1731369041051,-500.0,0.00014999,2]
[342026535,1731369041061,-500.0,0.00014999,2]
[342026536,1731369041070,-500.0,0.00014999,2]
[342026537,1731369041079,-500.0,0.00014999,2]
[342026538,1731369041089,-500.0,0.00014999,2]
[342026539,1731369041099,-500.0,0.00014999,2]
[342026540,1731369041109,-500.0,0.00014999,2]
[342026541,1731369041118,-500.0,0.00014999,2]
[342026542,1731369041127,-500.0,0.00014999,2]
[342026543,1731369041137,-500.0,0.00014999,2]
[342026544,1731369041146,-500.0,0.00014999,2]
[342026545,1731369041156,-500.0,0.00014999,2]
[342026546,1731369041165,-360.03356981,0.00014999,2]
[342026547,1731369041174,-500.0,0.00014999,2]
[342026548,1731369041185,-500.0,0.00014999,2]
[342026549,1731369041196,-500.0,0.00014999,2]
[342026550,1731369041206,-500.0,0.00014999,2]
[342026551,1731369041215,-500.0,0.00014999,2]
[342026552,1731369041225,-439.7613182,0.00014999,2]
[342026553,1731369041235,-500.0,0.00014999,2]
[342026554,1731369041244,-500.0,0.00014999,2]
[342026555,1731369041254,-500.0,0.00014999,2]
[342026556,1731369041263,-500.0,0.00014999,2]
[342026557,1731369041274,-500.0,0.00014999,2]
[342026558,1731369041283,-500.0,0.00014999,2]
[342026559,1731369041293,-500.0,0.00014999,2]
[342026560,1731369041302,-500.0,0.00014999,2]
[342026561,1731369041311,-685.83,0.00014999,2]
[342026562,1731369041321,-500.0,0.00014999,2]
[342026563,1731369041330,-685.83,0.00014999,2]
[342026564,1731369041339,-500.0,0.00014999,2]
[342026565,1731369041349,-500.0,0.00014999,2]
[342026566,1731369041358,-500.0,0.00014999,2]
[342026567,1731369041367,-500.0,0.00014999,2]
[342026568,1731369041376,-500.0,0.00014999,2]
[342026569,1731369041385,-685.83,0.00014999,2]
[342026570,1731369041394,-500.0,0.00014999,2]
[342026571,1731369041403,-500.0,0.00014999,2]
[342026572,1731369041412,-685.83,0.00014999,2]
[342026573,1731369041421,-500.0,0.00014999,2]
[342026574,1731369041431,-500.0,0.00014999,2]
[342026575,1731369041440,-685.83,0.00014999,2]
[342026576,1731369041460,-500.0,0.00014999,2]
[342026577,1731369041470,-685.83,0.00014999,2]
[342026578,1731369041479,-513.40097199,0.00014999,2]
[342026579,1731369041489,-500.0,0.00014999,2]
[342026580,1731369041499,-685.83,0.00014999,2]
[342026581,1731369041508,-500.0,0.00014999,2]
[342026582,1731369041518,-685.83,0.00014999,2]
[342026583,1731369041528,-500.0,0.00014999,2]
[342026584,1731369041537,-685.83,0.00014999,2]
[342026585,1731369041547,-500.0,0.00014999,2]
[342026586,1731369041556,-685.83,0.00014999,2]
[342026587,1731369041565,-500.0,0.00014999,2]
[342026588,1731369041574,-685.83,0.00014999,2]
[342026589,1731369041583,-685.83,0.00014999,2]
[342026590,1731369041593,-157.6628909,0.00014999,2]
[342026591,1731369041603,-685.83,0.00014999,2]
[342026592,1731369041612,-685.83,0.00014999,2]
[342026593,1731369041621,-685.83,0.00014999,2]
[342026594,1731369041630,-685.83,0.00014999,2]
[342026595,1731369041639,-685.83,0.00014999,2]
[342026596,1731369041648,-685.83,0.00014999,2]
[342026597,1731369041658,-685.83,0.00014999,2]
[342026598,1731369041667,-685.83,0.00014999,2]
[342026599,1731369041836,-685.86876462,0.00014999,2]
[342026600,1731369041846,-637.43,0.00014999,2]
[342026601,1731369041855,-637.43,0.00014999,2]
[342026602,1731369041864,-500.0,0.00014999,2]
[342026603,1731369041873,-637.43,0.00014999,2]
[342026604,1731369041882,-500.0,0.00014999,2]
[342026605,1731369041890,-637.43,0.00014999,2]
[342026606,1731369041899,-637.43,0.00014999,2]
[342026607,1731369041908,-637.43,0.00014999,2]
[342026608,1731369041917,-637.43,0.00014999,2]
[342026609,1731369041926,-637.43,0.00014999,2]
[342026610,1731369041935,-637.43,0.00014999,2]
[342026611,1731369041944,-637.43,0.00014999,2]
[342026612,1731369041954,-637.43,0.00014999,2]
[342026613,1731369041963,-637.43,0.00014999,2]
[342026614,1731369041972,-637.43,0.00014999,2]
[342026615,1731369041981,-637.43,0.00014999,2]
[342026616,1731369041990,-500.0,0.00014999,2]
[342026617,1731369042000,-637.43,0.00014999,2]
[342026618,1731369042009,-637.43,0.00014999,2]
[342026619,1731369042019,-500.0,0.00014999,2]
[342026620,1731369042028,-637.43,0.00014999,2]
[342026621,1731369042037,-500.0,0.00014999,2]
[342026622,1731369042046,-637.43,0.00014999,2]
[342026623,1731369042055,-500.0,0.00014999,2]
[342026624,1731369042064,-637.43,0.00014999,2]
[342026625,1731369042073,-500.0,0.00014999,2]
[342026626,1731369042082,-637.43,0.00014999,2]
[342026627,1731369042091,-500.0,0.00014999,2]
[342026628,1731369042099,-637.43010274,0.00014999,2]
[342026629,1731369042109,-500.0,0.00014999,2]
[342026630,1731369042117,-500.0,0.00014999,2]
[342026631,1731369042126,-190.33119602,0.00014999,2]
[342026632,1731369042135,-500.0,0.00014999,2]
[342026633,1731369042143,-572.97,0.00014999,2]
[342026634,1731369042153,-500.0,0.00014999,2]
[342026635,1731369042162,-572.97,0.00014999,2]
[342026636,1731369042171,-572.97,0.00014999,2]
[342026637,1731369042180,-500.0,0.00014999,2]
[342026638,1731369042189,-572.97,0.00014999,2]
[342026639,1731369042200,-500.0,0.00014999,2]
[342026640,1731369042209,-500.0,0.00014999,2]
[342026641,1731369042218,-571.46,0.00014999,2]
[342026642,1731369042228,-572.97,0.00014999,2]
[342026643,1731369042237,-500.0,0.00014999,2]
[342026644,1731369042247,-500.0,0.00014999,2]
[342026645,1731369042256,-571.46,0.00014999,2]
[342026646,1731369042265,-572.97,0.00014999,2]
[342026647,1731369042274,-500.0,0.00014999,2]
[342026648,1731369042283,-500.0,0.00014999,2]
[342026649,1731369042292,-571.46,0.00014999,2]
[342026650,1731369042302,-572.97,0.00014999,2]
[342026651,1731369042311,-500.0,0.00014999,2]
[342026652,1731369042320,-500.0,0.00014999,2]
[342026653,1731369042329,-571.46,0.00014999,2]
[342026654,1731369042339,-572.97,0.00014999,2]
[342026655,1731369042348,-480.13699728,0.00014999,2]
[342026656,1731369042357,-500.0,0.00014999,2]
[342026657,1731369042367,-572.97,0.00014999,2]
[342026658,1731369042376,-571.46,0.00014999,2]
[342026659,1731369042385,-500.0,0.00014999,2]
[342026660,1731369042394,-572.97,0.00014999,2]
[342026661,1731369042404,-571.46,0.00014999,2]
[342026662,1731369042414,-398.29377251,0.00014999,2]
[342026663,1731369042423,-572.97,0.00014999,2]
[342026664,1731369042432,-571.46,0.00014999,2]
[342026665,1731369042442,-572.97,0.00014999,2]
[342026666,1731369042456,-571.46,0.00014999,2]
[342026667,1731369042466,-572.97,0.00014999,2]
[342026668,1731369042476,-571.46,0.00014999,2]
[342026669,1731369042486,-572.97,0.00014999,2]
[342026670,1731369042496,-571.46,0.00014999,2]